bitfinex/quotes_BTCUSD_20220306
["timestamp","ask_amount","ask_price","bid_price","bid_amount"]
[1646594412042,0.07043246,38829.0,38825.0,0.00023672]
[1646594412440,0.00011026,38827.0,38825.0,0.00023672]
[1646594413045,0.17037484,38826.0,38825.0,0.00023672]
[1646594413495,0.07043246,38829.0,38825.0,0.17720351]
[1646594413694,0.07043246,38829.0,38825.0,0.00023672]
[1646594413695,0.00020327,38827.0,38825.0,0.00023672]
[1646594413897,0.06464071,38827.0,38825.0,0.00023672]
[1646594414497,0.17491504,38826.0,38825.0,0.00023672]
[1646594415195,0.16991504,38826.0,38825.0,0.00023672]
[1646594416999,0.3783747,38826.0,38825.0,0.00023672]
[1646594417244,0.4783747,38826.0,38825.0,0.00023672]
[1646594418447,0.65584404,38826.0,38825.0,0.00023672]
[1646594418845,0.26991504,38826.0,38825.0,0.00023672]
[1646594420449,0.5303719,38826.0,38825.0,0.00023672]
[1646594420648,0.36045686,38826.0,38825.0,0.00023672]
[1646594420852,0.26045686,38826.0,38825.0,0.00023672]
[1646594421097,0.26065502,38827.0,38825.0,0.00023672]
[1646594421795,0.16678853,38826.0,38825.0,0.00023672]
[1646594423400,0.16668296,38826.0,38825.0,0.00023672]
[1646594428345,0.26064667,38827.0,38825.0,0.00023672]
[1646594428606,0.20914,38826.0,38825.0,0.00023672]
[1646594429403,0.39396172,38826.0,38825.0,0.00023672]
[1646594429804,0.20914,38826.0,38825.0,0.00023672]
[1646594430804,0.19789212,38826.0,38825.0,0.00023672]
[1646594434644,0.2606464,38827.0,38825.0,0.00023672]
[1646594434844,0.26045686,38827.0,38825.0,0.00023672]
[1646594436104,0.46346064,38827.0,38825.0,0.00023672]
[1646594436509,0.26045686,38827.0,38825.0,0.00023672]
[1646594436706,0.26045686,38827.0,38824.0,0.16142531]
[1646594436906,0.20924398,38825.0,38824.0,0.16142531]
[1646594437707,0.4253154,38826.0,38824.0,0.16142531]
[1646594437907,0.20924305,38825.0,38824.0,0.16142531]
[1646594438306,0.26064639,38827.0,38824.0,0.16142531]
[1646594438508,0.26045686,38826.0,38817.0,0.3]
[1646594438708,0.20925035,38824.0,38817.0,0.3]
[1646594439306,0.20925035,38824.0,38821.0,0.20714829]
[1646594439756,0.20925035,38824.0,38821.0,0.15510266]
[1646594439961,0.20925035,38824.0,38821.0,0.21824721]
[1646594440359,0.20925035,38825.0,38821.0,0.21824721]
[1646594440960,0.20925035,38825.0,38821.0,0.28267121]
[1646594441162,0.20925035,38825.0,38821.0,0.21824721]
[1646594441961,0.20925035,38825.0,38821.0,0.37935802]
[1646594442360,0.20925035,38825.0,38821.0,0.21824721]
[1646594444000,0.20925035,38824.0,38821.0,0.21824721]
[1646594444199,0.20925035,38824.0,38816.0,0.34008097]
[1646594444600,0.20925035,38824.0,38818.0,0.16872376]
[1646594444801,0.20925035,38824.0,38816.0,0.21123397]
[1646594445003,0.20925035,38823.0,38816.0,0.21123397]
[1646594445202,0.20925035,38823.0,38816.0,0.17707765]
[1646594445803,0.1605579,38820.0,38815.0,0.21123397]
[1646594446206,0.1605579,38820.0,38814.0,0.21123397]
[1646594447105,0.20925035,38822.0,38814.0,0.21123397]
[1646594447747,0.21125035,38822.0,38814.0,0.21123397]
[1646594448151,0.18299638,38818.0,38813.0,0.01286]
[1646594448650,0.18299638,38818.0,38811.0,0.21123397]
[1646594449250,0.18299638,38818.0,38811.0,0.38691185]
[1646594450251,0.18299638,38818.0,38811.0,0.17567788]
[1646594454396,0.20925035,38819.0,38811.0,0.17567788]
[1646594454851,0.20925035,38819.0,38811.0,0.17067788]
[1646594456058,0.20925035,38819.0,38811.0,0.47067788]
[1646594456258,0.20925035,38821.0,38812.0,0.21123397]
[1646594456457,0.20925035,38822.0,38813.0,0.51123397]
[1646594456657,0.32425035,38823.0,38815.0,0.064424]
[1646594456857,0.115,38823.0,38817.0,0.128845]
[1646594457161,0.115,38823.0,38820.0,0.18223254]
[1646594457357,0.20925035,38824.0,38820.0,0.18223254]
[1646594458359,0.20925035,38824.0,38820.0,0.24665554]
[1646594458597,0.20925035,38824.0,38821.0,0.16478933]
[1646594458797,0.18425035,38824.0,38821.0,0.16478933]
[1646594460199,0.1881,38826.0,38821.0,0.22921433]
[1646594460399,0.00020314,38827.0,38821.0,0.22921433]
[1646594461400,0.26045686,38828.0,38821.0,0.22921433]
[1646594461607,0.00020315,38827.0,38825.0,0.128822]
[1646594461802,0.00020315,38827.0,38826.0,0.0516]
[1646594462456,0.00020315,38827.0,38826.0,0.23879335]
[1646594462751,0.3,38834.0,38833.0,0.19893419]
[1646594462953,0.26126927,38837.0,38833.0,0.19893419]
[1646594463149,0.00081241,38837.0,38833.0,0.19893419]
[1646594463748,0.26045686,38838.0,38833.0,0.19893419]
[1646594463953,0.3,38839.0,38833.0,0.19893419]
[1646594463954,0.26045686,38839.0,38834.0,0.064403]
[1646594464149,0.00020309,38837.0,38834.0,0.064403]
[1646594464954,0.1169,38841.0,38834.0,0.064403]
[1646594465150,0.303,38843.0,38834.0,0.064403]
[1646594465151,0.61254823,38843.0,38834.0,0.064403]
[1646594465349,0.00020309,38837.0,38834.0,0.064403]
[1646594466203,0.3,38843.0,38834.0,0.064403]
[1646594466598,0.00020309,38837.0,38834.0,0.064403]
[1646594467398,0.17184052,38842.0,38837.0,0.16792015]
[1646594467704,0.1211,38845.0,38837.0,0.16792015]
[1646594468000,0.003,38838.0,38837.0,0.16792015]
[1646594468599,0.003,38838.0,38837.0,0.23231415]
[1646594468800,0.003,38838.0,38837.0,0.34830715]
[1646594468998,0.003,38838.0,38837.0,0.46156472]
[1646594469198,0.3,38846.0,38839.0,0.02572]
[1646594469400,17.73305108,38847.0,38840.0,0.0516]
[1646594469599,17.73305108,38847.0,38841.0,0.064386]
[1646594469854,17.73305108,38847.0,38842.0,0.0516]
[1646594470053,17.73305108,38847.0,38842.0,0.115984]
[1646594470257,17.73305108,38847.0,38843.0,0.21521473]
[1646594470456,17.73305108,38847.0,38844.0,0.0516]
[1646594471355,17.73326334,38847.0,38844.0,0.0516]
[1646594471554,17.73326334,38847.0,38844.0,0.0416]
[1646594472256,17.73305108,38847.0,38844.0,0.0416]
[1646594472655,17.73326334,38847.0,38844.0,0.0416]
[1646594473504,0.3,38846.0,38844.0,0.0416]
[1646594473898,0.3,38846.0,38844.0,0.03103919]
[1646594474899,0.3,38846.0,38839.0,0.0516]
[1646594475300,0.36440018,38846.0,38839.0,0.0516]
[1646594475503,0.3,38846.0,38839.0,0.0516]
[1646594475699,0.3,38846.0,38837.0,0.16832364]
[1646594475900,0.3,38846.0,38838.0,0.004]
[1646594476104,0.21175676,38840.0,38838.0,0.004]
[1646594476301,0.00020222,38844.0,38842.0,0.35155792]
[1646594476900,0.3,38846.0,38842.0,0.35155792]
[1646594477351,0.00020222,38845.0,38842.0,0.35155792]
[1646594478155,17.73305108,38847.0,38842.0,0.35155792]
[1646594478452,17.73305108,38847.0,38845.0,0.2185605]
[1646594480998,17.73305108,38847.0,38845.0,0.4116905]
[1646594481199,17.73305108,38847.0,38845.0,0.47606727]
[1646594481698,17.73305108,38847.0,38845.0,0.4116905]
[1646594482300,17.73305108,38847.0,38845.0,0.47606633]
[1646594482698,17.73305108,38847.0,38845.0,0.4116905]
[1646594483100,17.73305108,38847.0,38846.0,0.064377]
[1646594483702,17.73305108,38847.0,38843.0,0.257507]
[1646594484500,17.73326162,38847.0,38843.0,0.257507]
[1646594484745,17.73326162,38847.0,38844.0,0.21637443]
[1646594485348,17.73305108,38847.0,38844.0,0.21637443]
[1646594485544,17.73305108,38847.0,38845.0,0.06438]
[1646594485747,17.73326848,38847.0,38845.0,0.06438]
[1646594486547,17.73305108,38847.0,38845.0,0.06438]
[1646594487152,17.73305108,38847.0,38844.0,0.21637443]
[1646594487352,17.73305108,38847.0,38845.0,0.128752]
[1646594488700,17.73305108,38847.0,38845.0,0.123752]
[1646594489603,17.73305108,38847.0,38846.0,0.7804]
[1646594489801,17.73305108,38847.0,38846.0,0.832]
[1646594490001,17.73305108,38847.0,38846.0,1.02362544]
[1646594490304,17.73305108,38847.0,38846.0,1.44934544]
[1646594490305,17.72805108,38847.0,38846.0,1.44934544]
[1646594490503,17.72805108,38847.0,38846.0,1.47435544]
[1646594490703,17.72805108,38847.0,38846.0,1.47461283]
[1646594491009,17.72805108,38847.0,38846.0,1.62461283]
[1646594491602,17.72805108,38847.0,38846.0,1.64962283]
[1646594492264,17.72805108,38847.0,38846.0,4.64962283]
[1646594492966,16.23999828,38847.0,38846.0,4.64962283]
[1646594493968,16.23999828,38847.0,38846.0,4.68915148]
[1646594493969,15.53614353,38847.0,38846.0,4.68915148]
[1646594494972,15.53614353,38847.0,38846.0,4.38915148]
[1646594499099,15.53614353,38847.0,38846.0,3.24140604]
[1646594499302,15.53614353,38847.0,38846.0,3.05002]
[1646594499502,15.53614353,38847.0,38846.0,0.05002]
[1646594500253,15.72099039,38847.0,38846.0,0.05002]
[1646594501752,15.53614353,38847.0,38846.0,0.05002]
[1646594502454,15.53614353,38847.0,38846.0,0.2584054]
[1646594506207,14.97298455,38847.0,38846.0,0.2584054]
[1646594511208,14.97298455,38847.0,38846.0,1.0388054]
[1646594511409,14.97298455,38847.0,38846.0,1.25207873]
[1646594511610,14.97298455,38847.0,38846.0,1.0388054]
[1646594512607,14.97298455,38847.0,38846.0,1.19271783]
[1646594512808,14.97298455,38847.0,38846.0,1.0388054]
[1646594516661,14.97290786,38847.0,38846.0,1.0388054]
[1646594520819,14.97290786,38847.0,38846.0,0.2584054]
[1646594521616,14.97290786,38847.0,38846.0,1.0388054]
[1646594527705,14.97290786,38847.0,38846.0,1.1388054]
[1646594528107,14.97290786,38847.0,38846.0,1.49628732]
[1646594528308,13.88296242,38847.0,38846.0,1.49628732]
[1646594528511,13.88296242,38847.0,38846.0,5.60954343]
[1646594528707,13.88296242,38847.0,38846.0,2.92529087]
[1646594529751,13.88296242,38847.0,38846.0,2.60954343]
[1646594530149,13.88296242,38847.0,38846.0,2.92529087]
[1646594531449,13.88296242,38847.0,38846.0,2.61940895]
[1646594532449,13.88296242,38847.0,38846.0,5.61440895]
[1646594532750,13.88296242,38847.0,38846.0,3.61440895]
[1646594532949,13.88296242,38847.0,38846.0,3.29866151]
[1646594534317,13.88296242,38847.0,38846.0,3.61440895]
[1646594535321,13.88296242,38847.0,38846.0,3.50141024]
[1646594536218,13.31989291,38847.0,38846.0,3.50141024]
[1646594540658,13.31989291,38847.0,38846.0,3.69449124]
[1646594546759,13.31989291,38847.0,38846.0,5.69449124]
[1646594546960,13.31989291,38847.0,38846.0,5.70735124]
[1646594548158,13.31989291,38847.0,38846.0,5.69449124]
[1646594548504,12.61608164,38847.0,38846.0,5.69449124]
[1646594548700,12.61608164,38847.0,38846.0,5.3787438]
[1646594553158,12.61608164,38847.0,38846.0,5.69449124]
[1646594554254,12.61608164,38847.0,38846.0,5.3787438]
[1646594554656,12.61608164,38847.0,38846.0,5.69521902]
[1646594556306,12.61608164,38847.0,38846.0,5.70807902]
[1646594556804,12.61608164,38847.0,38846.0,5.3916038]
[1646594559208,12.61608164,38847.0,38846.0,5.3787438]
[1646594562459,12.61608164,38847.0,38846.0,6.0845811]
[1646594562659,12.61608164,38847.0,38846.0,6.08458349]
[1646594563259,12.61608164,38847.0,38846.0,5.3787438]
[1646594563907,12.61608164,38847.0,38846.0,6.08458497]
[1646594565108,12.61608164,38847.0,38846.0,5.71621295]
[1646594566210,12.61608164,38847.0,38846.0,6.08550847]
[1646594566409,12.05304019,38847.0,38846.0,6.08550847]
[1646594566610,12.05304019,38847.0,38846.0,5.71621295]
[1646594566809,12.05304019,38847.0,38846.0,6.08550729]
[1646594567011,12.05304019,38847.0,38846.0,5.71621295]
[1646594567260,12.05304019,38847.0,38846.0,6.08550784]
[1646594568362,11.3492393,38847.0,38846.0,6.08550784]
[1646594568763,11.3492393,38847.0,38846.0,5.71621295]
[1646594568963,11.3492393,38847.0,38846.0,6.08556394]
[1646594569163,11.3492393,38847.0,38846.0,5.3787438]
[1646594571807,11.3492393,38847.0,38846.0,6.05913291]
[1646594573106,11.3492393,38847.0,38846.0,5.27873291]
[1646594573311,11.3492393,38847.0,38846.0,5.22713291]
[1646594574108,11.3392393,38847.0,38846.0,5.22713291]
[1646594574410,11.3392393,38847.0,38846.0,4.85778192]
[1646594580211,11.3392393,38847.0,38846.0,4.90938192]
[1646594583461,11.3392393,38847.0,38846.0,5.10445752]
[1646594583661,11.3392393,38847.0,38846.0,4.90938192]
[1646594584074,11.3392393,38847.0,38846.0,5.1044574]
[1646594588112,11.3392393,38847.0,38846.0,4.90938192]
[1646594588311,11.3392393,38847.0,38846.0,5.10458549]
[1646594588612,10.63544466,38847.0,38846.0,5.10458549]
[1646594590464,10.63544466,38847.0,38846.0,5.88498549]
[1646594590763,10.63544466,38847.0,38846.0,6.31600009]
[1646594590764,5.05060982,38847.0,38846.0,6.31600009]
[1646594590963,2.97114822,38847.0,38846.0,6.12079652]
[1646594591162,2.94767517,38847.0,38846.0,6.12079652]
[1646594593166,2.94767517,38847.0,38846.0,6.62079652]
[1646594593365,2.92988986,38847.0,38846.0,6.77519652]
[1646594593621,2.37199538,38847.0,38846.0,6.78911843]
[1646594593825,2.37199538,38847.0,38846.0,8.46877997]
[1646594594422,1.98589638,38847.0,38846.0,8.46877997]
[1646594596422,0.68073265,38847.0,38846.0,8.46877997]
[1646594597360,2.81e-06,38848.0,38847.0,0.93481902]
[1646594597562,0.00081112,38854.0,38851.0,0.94823768]
[1646594597763,0.00081112,38854.0,38853.0,1.92692815]
[1646594597961,0.00081112,38854.0,38853.0,2.28956627]
[1646594598164,0.00081112,38854.0,38853.0,2.0204082]
[1646594598362,0.35498196,38866.0,38853.0,2.0204082]
[1646594598562,0.1838,38867.0,38862.0,0.064343]
[1646594598764,0.1127,38868.0,38863.0,0.18028442]
[1646594599164,0.35498196,38867.0,38863.0,0.18028442]
[1646594599560,0.02572,38869.0,38863.0,0.18028442]
[1646594600062,0.02572,38869.0,38863.0,0.24462442]
[1646594600260,0.02572,38869.0,38865.0,0.064344]
[1646594600564,0.02572,38871.0,38865.0,0.064344]
[1646594600760,0.02572,38869.0,38865.0,0.064344]
[1646594601025,0.02572,38869.0,38866.0,0.064345]
[1646594601428,0.02572,38869.0,38865.0,0.064344]
[1646594601831,0.02572,38874.0,38866.0,0.0516]
[1646594602031,0.02572,38874.0,38868.0,0.064332]
[1646594602228,0.00021749,38869.0,38868.0,0.064332]
[1646594602429,0.00021749,38869.0,38868.0,0.115932]
[1646594602627,0.00021749,38869.0,38868.0,0.11618929]
[1646594603228,0.02572,38874.0,38868.0,0.11618929]
[1646594603426,0.00021749,38870.0,38868.0,0.115932]
[1646594603628,0.00021749,38870.0,38869.0,0.00025729]
[1646594603829,0.00021749,38870.0,38869.0,0.05185729]
[1646594604030,0.00021749,38870.0,38869.0,0.09725]
[1646594604431,0.02572,38875.0,38870.0,0.064335]
[1646594604635,0.02572,38875.0,38871.0,0.11593534]
[1646594605468,0.02572,38875.0,38872.0,0.064335]
[1646594605672,0.02572,38875.0,38872.0,0.128671]
[1646594605867,0.02593747,38875.0,38872.0,0.128671]
[1646594606669,0.02572,38875.0,38872.0,0.128671]
[1646594607068,0.02592502,38875.0,38872.0,0.128671]
[1646594607870,0.02572,38875.0,38872.0,0.128671]
[1646594608271,0.02592502,38875.0,38872.0,0.128671]
[1646594609110,0.02572,38875.0,38873.0,0.04565]
[1646594609308,0.02592502,38875.0,38873.0,0.04565]
[1646594610410,0.02572,38875.0,38873.0,0.04565]
[1646594614164,0.02572,38875.0,38872.0,0.128671]
[1646594614363,0.17592255,38876.0,38874.0,0.04565]
[1646594615171,0.17572,38876.0,38874.0,0.04565]
[1646594615668,0.17572,38876.0,38874.0,0.04065]
[1646594619214,0.17572,38876.0,38872.0,0.064335]
[1646594619617,0.17572,38876.0,38874.0,0.04065]
[1646594620283,0.02592276,38877.0,38874.0,0.04065]
[1646594620881,0.1594526,38875.0,38874.0,0.04065]
[1646594621084,0.48129093,38875.0,38874.0,0.04065]
[1646594621286,0.48129093,38875.0,38874.0,0.0021365]
[1646594622183,1.12572,38874.0,38859.0,0.35359564]
[1646594622384,0.02572,38868.0,38862.0,0.128705]
[1646594622582,0.02572,38868.0,38866.0,0.13297008]
[1646594622787,0.02572,38868.0,38867.0,0.13297008]
[1646594622788,0.00020276,38868.0,38867.0,0.13297008]
[1646594623183,0.02572,38867.0,38858.0,0.2237903]
[1646594623388,0.31150108,38868.0,38856.0,0.2169403]
[1646594623389,0.02572,38864.0,38856.0,0.2169403]
[1646594623627,0.48176582,38868.0,38856.0,0.01885]
[1646594623628,0.02572,38862.0,38856.0,0.01885]
[1646594623828,0.02572,38862.0,38856.0,0.006]
[1646594624028,0.02592278,38862.0,38856.0,0.006]
[1646594624227,0.20934024,38859.0,38855.0,0.064365]
[1646594624429,0.20934024,38859.0,38855.0,0.128729]
[1646594624629,0.02572,38859.0,38855.0,0.128729]
[1646594625229,0.00019339,38859.0,38855.0,0.128729]
[1646594626033,0.17572,38862.0,38855.0,0.128729]
[1646594626431,0.02649346,38865.0,38855.0,0.128729]
[1646594627269,0.02572,38865.0,38855.0,0.128729]
[1646594627469,0.02572,38863.0,38855.0,0.128729]
[1646594628373,0.02572,38869.0,38859.0,0.064354]
[1646594628573,0.02572,38869.0,38857.0,0.35207288]
[1646594628773,0.00018823,38861.0,38856.0,0.128712]
[1646594629676,0.02572,38865.0,38856.0,0.128712]
[1646594629872,0.00018823,38861.0,38856.0,0.48078488]
[1646594630071,0.00018823,38861.0,38856.0,0.128712]
[1646594630372,0.00018823,38861.0,38858.0,0.128705]
[1646594630578,0.00018823,38861.0,38858.0,0.193054]
[1646594630777,0.00018823,38861.0,38856.0,0.128712]
[1646594631014,0.02572,38865.0,38856.0,0.128712]
[1646594631217,0.00018823,38861.0,38856.0,0.48078488]
[1646594631416,0.00018823,38861.0,38856.0,0.128712]
[1646594632015,0.02572,38864.0,38856.0,0.128712]
[1646594632415,0.00018918,38861.0,38856.0,0.128712]
[1646594633220,0.02572,38866.0,38856.0,0.128712]
[1646594633415,0.02572,38866.0,38858.0,0.064358]
[1646594633617,0.00018918,38861.0,38858.0,0.128716]
[1646594634515,0.02572,38868.0,38858.0,0.128716]
[1646594634765,0.00018918,38861.0,38858.0,0.128716]
[1646594635665,0.02572,38866.0,38858.0,0.128716]
[1646594635870,0.00018903,38861.0,38858.0,0.128716]
[1646594638066,0.02572,38866.0,38858.0,0.128716]
[1646594638266,0.00018903,38861.0,38858.0,0.128716]
[1646594639317,0.02572,38869.0,38858.0,0.128716]
[1646594639516,0.00018905,38861.0,38858.0,0.128716]
[1646594640318,0.00018905,38861.0,38857.0,0.064363]
[1646594640519,0.37779288,38865.0,38856.0,0.128712]
[1646594640721,0.00018905,38861.0,38856.0,0.3396523]
[1646594640920,0.00018905,38861.0,38856.0,0.128712]
[1646594641125,0.37298193,38865.0,38856.0,0.128712]
[1646594641322,0.37298193,38865.0,38857.0,0.064361]
[1646594642124,0.37298193,38865.0,38857.0,0.12871794]
[1646594642378,0.37298193,38865.0,38858.0,0.128714]
[1646594643076,0.00018919,38863.0,38858.0,0.128714]
[1646594644078,0.37779288,38866.0,38858.0,0.128714]
[1646594644278,0.00018919,38863.0,38858.0,0.128714]
[1646594645278,0.37779288,38866.0,38858.0,0.128714]
[1646594645580,0.00018919,38863.0,38858.0,0.128714]
[1646594646419,0.37779288,38866.0,38858.0,0.128714]
[1646594646820,0.00018903,38863.0,38858.0,0.128714]
[1646594647719,0.37779288,38866.0,38858.0,0.128714]
[1646594647921,0.00020372,38863.0,38858.0,0.128714]
[1646594648921,0.02572,38868.0,38858.0,0.128714]
[1646594649124,0.00020372,38863.0,38858.0,0.128714]
[1646594650166,0.35207288,38866.0,38858.0,0.128714]
[1646594650467,0.00020372,38863.0,38858.0,0.128714]
[1646594651274,0.02572,38867.0,38859.0,0.06435388]
[1646594651468,0.00020323,38863.0,38861.0,0.064354]
[1646594651868,0.00020323,38863.0,38862.0,0.064352]
[1646594652373,0.00020323,38863.0,38862.0,0.265952]
[1646594652569,0.1204,38870.0,38864.0,0.00019759]
[1646594652768,0.1204,38870.0,38865.0,0.0516]
[1646594652769,0.12121279,38870.0,38865.0,0.0516]
[1646594652971,0.00081279,38870.0,38865.0,0.0516]
[1646594653619,0.00081279,38870.0,38865.0,0.115933]
[1646594653825,0.00020322,38869.0,38866.0,0.06433654]
[1646594654018,0.00020322,38869.0,38868.0,0.11319784]
[1646594654223,0.00020322,38869.0,38868.0,0.16479784]
[1646594654823,0.35207288,38875.0,38868.0,0.16479784]
[1646594655019,0.1145,38876.0,38870.0,0.06433618]
[1646594655218,0.00081293,38876.0,38870.0,0.06433618]
[1646594655419,0.00081293,38876.0,38872.0,0.064337]
[1646594656219,0.00020325,38876.0,38872.0,0.064337]
[1646594656619,0.00020325,38876.0,38870.0,0.03522544]
[1646594657270,0.51699982,38877.0,38871.0,0.064337]
[1646594657471,0.00020325,38875.0,38872.0,0.064337]
[1646594658571,0.50699982,38877.0,38872.0,0.064337]
[1646594658771,0.00020325,38875.0,38872.0,0.064337]
[1646594659772,0.50699982,38877.0,38872.0,0.064337]
[1646594659974,0.00020325,38875.0,38872.0,0.064337]
[1646594661021,0.00020325,38875.0,38871.0,0.064337]
[1646594661222,0.00020325,38875.0,38870.0,0.064341]
[1646594661423,0.00020325,38875.0,38870.0,0.128682]
[1646594662022,0.15492694,38877.0,38870.0,0.128682]
[1646594662425,0.00020325,38874.0,38872.0,0.064338]
[1646594663223,0.55255112,38881.0,38872.0,0.064338]
[1646594663425,0.20906671,38881.0,38872.0,0.064338]
[1646594663623,0.00020325,38875.0,38872.0,0.064338]
[1646594664023,0.00020325,38875.0,38872.0,0.128674]
[1646594664423,0.7597633,38881.0,38872.0,0.128674]
[1646594664624,0.00020325,38875.0,38872.0,0.128674]
[1646594664873,0.00020325,38875.0,38874.0,0.064334]
[1646594665275,0.00020325,38875.0,38874.0,0.46433128]
[1646594665570,0.00081287,38881.0,38875.0,1.1]
[1646594665768,0.0011,38886.0,38878.0,0.064307]
[1646594665968,0.0011,38886.0,38879.0,0.0516]
[1646594665969,0.00049414,38882.0,38879.0,0.0516]
[1646594666168,0.00049414,38882.0,38881.0,0.11315854]
[1646594666368,0.00049414,38882.0,38881.0,0.16475854]
[1646594666872,0.0011,38886.0,38881.0,0.16475854]
[1646594667067,0.0011,38886.0,38882.0,0.064321]
[1646594667269,0.0011,38886.0,38883.0,0.0516]
[1646594668735,0.0011,38886.0,38883.0,0.115921]
[1646594669540,0.00131761,38886.0,38883.0,0.115921]
[1646594670537,0.0011,38886.0,38884.0,0.68895453]
[1646594670739,0.00131761,38886.0,38884.0,0.68895453]
[1646594671638,0.0011,38886.0,38884.0,0.68895453]
[1646594674372,0.0011,38886.0,38884.0,0.75327353]
[1646594679127,0.0011,38886.0,38884.0,0.68895453]
[1646594679781,0.17655249,38886.0,38884.0,0.68895453]
[1646594680175,0.18325325,38885.0,38884.0,0.68895453]
[1646594684624,0.25809313,38885.0,38884.0,0.68895453]
[1646594684828,0.64402213,38885.0,38884.0,0.37900438]
[1646594685025,0.25809313,38885.0,38884.0,0.37900438]
[1646594685626,0.18325325,38885.0,38884.0,0.37900438]
[1646594687478,0.23650274,38885.0,38884.0,0.37900438]
[1646594688773,0.18325325,38885.0,38884.0,0.37900438]
[1646594694880,0.17675515,38886.0,38884.0,0.37900438]
[1646594695085,0.00130266,38886.0,38884.0,0.37900438]
[1646594695680,0.0011,38888.0,38886.0,0.00194237]
[1646594696080,0.00020266,38887.0,38886.0,0.00194237]
[1646594696682,0.00020266,38887.0,38886.0,0.13491245]
[1646594696880,0.0011,38888.0,38886.0,0.13491245]
[1646594697080,0.00130266,38888.0,38886.0,0.00194237]
[1646594697281,0.00130266,38888.0,38886.0,0.06625837]
[1646594698082,0.0011,38888.0,38886.0,0.06625837]
[1646594698282,0.0011,38888.0,38886.0,0.00194237]
[1646594700122,0.0011,38888.0,38886.0,0.05354237]
[1646594700926,0.0011,38888.0,38886.0,0.11785937]
[1646594701322,0.0011,38888.0,38886.0,0.18217116]
[1646594701522,0.0011,38888.0,38886.0,0.24648816]
[1646594706552,0.00103636,38888.0,38886.0,0.24648816]
[1646594706753,0.3588084,38897.0,38886.0,0.24648816]
[1646594707152,0.26194251,38895.0,38886.0,0.24648816]
[1646594707752,0.26194251,38894.0,38886.0,0.24648816]
[1646594707954,0.16164387,38893.0,38886.0,0.24648816]
[1646594711270,0.4111969,38897.0,38886.0,0.24648816]
[1646594711473,0.09686589,38897.0,38888.0,0.06430639]
[1646594711672,0.09708325,38897.0,38888.0,0.06430639]
[1646594711971,0.09708325,38897.0,38891.0,0.064307]
[1646594712172,0.00021736,38897.0,38891.0,0.064307]
[1646594712674,0.1795402,38898.0,38891.0,0.06430374]
[1646594712872,0.00021737,38897.0,38891.0,0.06430374]
[1646594713528,0.00021737,38897.0,38893.0,0.064303]
[1646594713724,0.1795402,38898.0,38894.0,0.064303]
[1646594714124,0.00021738,38897.0,38894.0,0.064303]
[1646594714725,0.15475758,38898.0,38894.0,0.064303]
[1646594714927,0.15475758,38898.0,38895.0,0.064304]
[1646594715327,0.0011,38900.0,38895.0,0.064304]
[1646594716527,0.00021737,38899.0,38895.0,0.064304]
[1646594717469,0.0011,38900.0,38895.0,0.064304]
[1646594717672,0.00020076,38899.0,38895.0,0.064304]
[1646594718470,0.00020076,38899.0,38894.0,0.064303]
[1646594718674,0.0011,38900.0,38894.0,0.064303]
[1646594718869,0.00020076,38899.0,38894.0,0.128607]
[1646594719871,0.0011,38900.0,38894.0,0.128607]
[1646594720072,0.00020076,38899.0,38894.0,0.128607]
[1646594720273,0.00020076,38899.0,38895.0,0.128596]
[1646594720474,0.00020076,38899.0,38895.0,0.180196]
[1646594720873,0.00020076,38899.0,38895.0,0.330196]
[1646594721137,0.0011,38900.0,38895.0,0.394493]
[1646594721350,0.00019234,38899.0,38895.0,0.394493]
[1646594722140,0.0011,38900.0,38895.0,0.394493]
[1646594722338,0.00019345,38899.0,38895.0,0.394493]
[1646594722542,0.00019345,38899.0,38896.0,0.064295]
[1646594722740,0.00019345,38899.0,38896.0,0.192882]
[1646594723344,0.0011,38900.0,38896.0,0.192882]
[1646594723542,0.00019345,38899.0,38898.0,0.27634116]
[1646594723742,0.00019345,38899.0,38898.0,0.44106333]
[1646594723944,0.00019345,38899.0,38898.0,0.22901517]
[1646594724441,0.00019345,38899.0,38898.0,0.2290079]
[1646594724640,0.0011,38900.0,38898.0,0.2290079]
[1646594724899,0.00129011,38900.0,38899.0,0.064293]
[1646594725799,0.0011,38903.0,38902.0,0.00603077]
[1646594726000,0.0011,38903.0,38902.0,0.07032277]
[1646594728533,0.0011,38903.0,38902.0,0.00603077]
[1646594728939,0.0011,38908.0,38903.0,0.75]
[1646594729140,0.0011,38908.0,38904.0,0.39836302]
[1646594729335,0.0011,38908.0,38904.0,0.0516]
[1646594729735,0.0013029,38907.0,38904.0,0.0516]
[1646594730337,0.0013029,38907.0,38904.0,0.18016421]
[1646594730540,0.0011,38907.0,38904.0,0.24445321]
[1646594730938,0.0013029,38907.0,38904.0,0.24445321]
[1646594731743,0.0011,38907.0,38904.0,0.24445321]
[1646594732137,0.53826302,38913.0,38905.0,0.45]
[1646594732138,0.53867569,38913.0,38905.0,0.45]
[1646594732372,0.19191267,38913.0,38909.0,0.064283]
[1646594732775,0.00081011,38913.0,38909.0,0.064283]
[1646594732975,0.2905554,38914.0,38909.0,0.064283]
[1646594734577,0.00012196,38913.0,38909.0,0.064283]
[1646594735174,0.00012196,38913.0,38910.0,0.0516]
[1646594735474,0.0011,38914.0,38910.0,0.115875]
[1646594735674,0.00021734,38913.0,38911.0,0.064271]
[1646594736123,0.00021734,38913.0,38911.0,0.192812]
[1646594736524,0.0011,38914.0,38911.0,0.40122748]
[1646594736724,0.0011,38914.0,38911.0,0.192812]
[1646594736927,0.00131734,38914.0,38911.0,0.192812]
[1646594737525,0.00131734,38914.0,38912.0,0.18013604]
[1646594737725,0.0011,38914.0,38913.0,0.34676302]
[1646594737927,0.0011,38914.0,38913.0,0.39836302]
[1646594738726,0.0011,38914.0,38913.0,0.2016]
[1646594739430,0.0011,38914.0,38913.0,0.66143868]
[1646594739625,0.0011,38914.0,38913.0,0.31467566]
[1646594739877,0.0011,38914.0,38913.0,0.66143868]
[1646594740076,0.0011,38914.0,38913.0,0.31467566]
[1646594740280,0.0011,38914.0,38913.0,0.34039566]
[1646594740479,0.0011,38914.0,38913.0,0.39695379]
[1646594740679,0.0011,38914.0,38913.0,0.85678375]
[1646594740879,0.0011,38914.0,38913.0,0.61002073]
[1646594742082,0.0011,38914.0,38913.0,0.95678375]
[1646594746130,0.0011,38914.0,38913.0,0.44038694]
[1646594746327,0.0011,38914.0,38913.0,0.41466694]
[1646594746728,0.0011,38914.0,38913.0,0.31466694]
[1646594746931,0.0011,38914.0,38913.0,0.15]
[1646594747130,0.0011,38914.0,38913.0,0.15089941]